lending/lending_fUSD_20250425
["ID","MTS","AMOUNT","RATE_DAILY","PERIOD"]
[358981697,1745601050978,-500.0,0.00030136,2]
[358981698,1745601050988,-500.0,0.00030136,2]
[358981699,1745601050999,-500.0,0.00030136,2]
[358981700,1745601051010,-500.0,0.00030136,2]
[358981701,1745601051022,-360.66285228,0.00030136,2]
[358981702,1745601051031,-500.0,0.00030136,2]
[358981703,1745601051042,-975.75,0.00030136,2]
[358981704,1745601051050,-500.0,0.00030136,2]
[358981705,1745601051059,-500.0,0.00030136,2]
[358981706,1745601051069,-500.0,0.00030136,2]
[358981707,1745601051078,-500.0,0.00030136,2]
[358981708,1745601051087,-500.0,0.00030136,2]
[358981709,1745601051096,-1002.85,0.00030136,2]
[358981710,1745601051107,-500.0,0.00030136,2]
[358981711,1745601051119,-542.82,0.00030136,2]
[358981712,1745601051128,-3411.55,0.00030136,2]
[358981713,1745601051369,-3411.55,0.00030136,2]
[358981714,1745601051381,-855.05,0.00030136,2]
[358981715,1745601051391,-500.0,0.00030136,2]
[358981716,1745601051401,-3411.55,0.00030136,2]
[358981717,1745601051410,-500.0,0.00030136,2]
[358981718,1745601051420,-3411.55,0.00030136,2]
[358981719,1745601051429,-500.0,0.00030136,2]
[358981720,1745601051439,-561.23,0.00030136,2]
[358981721,1745601051450,-500.0,0.00030136,2]
[358981722,1745601051461,-500.0,0.00030136,2]
[358981723,1745601051471,-1627.31,0.00030136,2]
[358981724,1745601051481,-1195.79,0.00030136,2]
[358981725,1745601051492,-1041.94,0.00030136,2]
[358981726,1745601051502,-500.0,0.00030136,2]
[358981727,1745601051511,-500.0,0.00030136,2]
[358981728,1745601051521,-500.0,0.00030136,2]
[358981729,1745601051530,-500.0,0.00030136,2]
[358981730,1745601051540,-500.0,0.00030136,2]
[358981731,1745601051550,-500.0,0.00030136,2]
[358981732,1745601051559,-500.0,0.00030136,2]
[358981733,1745601051569,-751.78,0.00030136,2]
[358981734,1745601051579,-500.0,0.00030136,2]
[358981735,1745601051589,-500.0,0.00030136,2]
[358981736,1745601051598,-760.17,0.00030136,2]
[358981737,1745601051608,-563.68849884,0.00030136,2]
[358981738,1745601051617,-1018.43,0.00030136,2]
[358981739,1745601051627,-500.0,0.00030136,2]
[358981740,1745601051636,-629.21,0.00030136,2]
[358981741,1745601051646,-504.87009129,0.00030173,5]
[358981742,1745601051655,-500.0,0.00030173,5]
[358981743,1745601051666,-162.17842943,0.00030173,5]
[358981744,1745601051676,-500.0,0.00030173,5]
[358981745,1745601051686,-500.0,0.00030173,2]
[358981746,1745601051695,-500.0,0.00030173,5]
[358981747,1745601051705,-2613.90435578,0.00030203,2]
[358981748,1745601051715,-6582.62558627,0.00030211,2]
[358981749,1745601051724,-805.88958407,0.00030214,2]
[358981750,1745601051734,-14867.4283268,0.00030269,2]
[358981751,1745601051743,-495.05082145,0.000303,2]
[358981752,1745601051753,-6582.62558627,0.00030303,2]
[358981753,1745601051762,-2076.28411663,0.00030314,9]
[358981754,1745601051772,-4021.0,0.00030356,2]
[358981755,1745601051782,-3411.55,0.0003039,2]
[358981756,1745601051791,-500.0,0.0003039,2]
[358981757,1745601051801,-500.0,0.0003039,2]
[358981758,1745601051811,-500.0,0.0003039,2]
[358981759,1745601051821,-500.0,0.0003039,2]
[358981760,1745601051830,-500.0,0.0003039,2]
[358981761,1745601051841,-308.80858864,0.0003039,2]
[358981762,1745601051851,-6582.62558627,0.00030396,2]
[358981763,1745601051860,-3411.55,0.000304,2]
[358981764,1745601051869,-14867.4283268,0.000304,2]
[358981765,1745601051879,-150.0,0.00030409,3]
[358981766,1745601051889,-3411.55,0.00030409,2]
[358981767,1745601051898,-3411.55,0.00030409,2]
[358981768,1745601051907,-3411.55,0.00030409,2]
[358981769,1745601051917,-500.0,0.0003041,2]
[358981770,1745601051927,-500.0,0.0003041,2]
[358981771,1745601051939,-500.0,0.0003041,2]
[358981772,1745601051948,-500.0,0.0003041,2]
[358981773,1745601051957,-500.0,0.0003041,2]
[358981774,1745601051966,-500.0,0.0003041,2]
[358981775,1745601051976,-500.0,0.0003041,2]
[358981776,1745601051986,-500.0,0.0003041,2]
[358981777,1745601051995,-1026.86636,0.0003041,2]
[358981778,1745601052005,-524.45178682,0.0003041,2]
[358981779,1745601052014,-500.0,0.0003041,2]
[358981780,1745601052024,-500.0,0.0003041,2]
[358981781,1745601052034,-500.0,0.0003041,2]
[358981782,1745601052043,-500.0,0.0003041,2]
[358981783,1745601052052,-1033.314468,0.0003041,2]
[358981784,1745601052061,-500.0,0.0003041,2]
[358981785,1745601052071,-500.0,0.0003041,2]
[358981786,1745601052081,-500.0,0.0003041,2]
[358981787,1745601052091,-442.51424453,0.0003041,2]
[358981788,1745601052100,-500.0,0.0003041,2]
[358981789,1745601052109,-500.0,0.0003041,2]
[358981790,1745601052118,-500.0,0.0003041,2]
[358981791,1745601052127,-500.0,0.0003041,2]
[358981792,1745601052137,-500.0,0.0003041,2]
[358981793,1745601052146,-500.0,0.0003041,2]
[358981794,1745601052156,-520.83,0.0003041,2]
[358981795,1745601052168,-511.84,0.0003041,2]
[358981796,1745601052178,-734.93,0.0003041,2]
[358981797,1745601052187,-500.0,0.0003041,2]
[358981798,1745601052197,-500.0,0.0003041,2]
[358981799,1745601052206,-500.0,0.0003041,2]
[358981800,1745601052217,-500.0,0.0003041,2]
[358981801,1745601052227,-500.0,0.0003041,2]
[358981802,1745601052236,-500.0,0.0003041,2]
[358981803,1745601052246,-661.21,0.0003041,2]
[358981804,1745601052256,-500.0,0.0003041,2]
[358981805,1745601052265,-500.0,0.0003041,2]
[358981806,1745601052274,-500.0,0.0003041,2]
[358981807,1745601052283,-272.0238881,0.0003041,2]
[358981808,1745601052293,-500.0,0.0003041,2]
[358981809,1745601052303,-500.0,0.0003041,2]
[358981810,1745601052312,-500.0,0.0003041,2]
[358981811,1745601052321,-500.0,0.0003041,2]
[358981812,1745601052333,-500.0,0.0003041,2]
[358981813,1745601052342,-500.0,0.0003041,2]
[358981814,1745601052352,-500.0,0.0003041,2]
[358981815,1745601052365,-500.0,0.0003041,2]
[358981816,1745601052375,-500.0,0.0003041,2]
[358981817,1745601052386,-500.0,0.0003041,2]
[358981818,1745601052397,-500.0,0.0003041,2]
[358981819,1745601052408,-500.0,0.0003041,2]
[358981820,1745601052419,-604.38,0.0003041,2]
[358981821,1745601052432,-955.99,0.0003041,2]
[358981822,1745601052443,-500.0,0.0003041,2]
[358981823,1745601052454,-500.0,0.0003041,2]
[358981824,1745601052463,-500.0,0.0003041,2]
[358981825,1745601052473,-500.0,0.0003041,2]
[358981826,1745601052483,-560.13,0.0003041,2]
[358981827,1745601052494,-500.0,0.0003041,2]
[358981828,1745601052504,-500.0,0.0003041,2]
[358981829,1745601052514,-500.0,0.0003041,2]
[358981830,1745601052523,-500.0,0.0003041,2]
[358981831,1745601052534,-825.68,0.0003041,2]
[358981832,1745601052543,-500.0,0.0003041,2]
[358981833,1745601052553,-721.98,0.0003041,2]
[358981834,1745601052563,-500.0,0.0003041,2]
[358981835,1745601052573,-500.0,0.0003041,2]
[358981836,1745601052583,-500.0,0.0003041,2]
[358981837,1745601052593,-500.0,0.0003041,2]
[358981838,1745601052603,-500.0,0.0003041,2]
[358981839,1745601052612,-500.0,0.0003041,2]
[358981840,1745601052622,-500.0,0.0003041,2]
[358981841,1745601052632,-512.19,0.0003041,2]
[358981842,1745601052642,-940.12,0.0003041,2]
[358981843,1745601052652,-500.0,0.0003041,2]
[358981844,1745601052662,-765.36,0.0003041,2]
[358981845,1745601052672,-780.85,0.0003041,2]
[358981846,1745601052682,-500.0,0.0003041,2]
[358981847,1745601052691,-500.0,0.0003041,2]
[358981848,1745601052702,-500.0,0.0003041,2]
[358981849,1745601052713,-500.0,0.0003041,2]
[358981850,1745601052722,-500.0,0.0003041,2]
[358981851,1745601052732,-500.0,0.0003041,2]
[358981852,1745601052742,-500.0,0.0003041,2]
[358981853,1745601052752,-532.45,0.0003041,2]
[358981854,1745601052764,-550.16,0.0003041,2]
[358981855,1745601052783,-852.91,0.0003041,2]
[358981856,1745601052792,-540.9,0.0003041,2]
[358981857,1745601052802,-500.0,0.0003041,2]
[358981858,1745601052811,-500.0,0.0003041,2]
[358981859,1745601052820,-500.0,0.0003041,2]
[358981860,1745601052830,-500.0,0.0003041,2]
[358981861,1745601052839,-798.5,0.0003041,2]
[358981862,1745601052849,-500.0,0.0003041,2]
[358981863,1745601052858,-902.08,0.0003041,2]
[358981864,1745601052868,-500.0,0.0003041,2]
[358981865,1745601052877,-919.41,0.0003041,2]
[358981866,1745601052886,-500.0,0.0003041,2]
[358981867,1745601052896,-372.74929634,0.0003041,2]
[358981868,1745601052907,-619.58,0.0003041,2]
[358981869,1745601052917,-785.19,0.0003041,2]
[358981870,1745601052927,-500.0,0.0003041,2]
[358981871,1745601052937,-500.0,0.0003041,2]
[358981872,1745601052946,-500.0,0.0003041,2]
[358981873,1745601052956,-500.0,0.0003041,2]
[358981874,1745601052967,-558.58,0.0003041,2]
[358981875,1745601052979,-842.41,0.0003041,2]
[358981876,1745601052990,-882.07,0.0003041,2]
[358981877,1745601053000,-1044.64,0.0003041,2]
[358981878,1745601053010,-500.0,0.0003041,2]
[358981879,1745601053019,-500.0,0.0003041,2]
[358981880,1745601053028,-500.0,0.0003041,2]
[358981881,1745601053038,-638.33,0.0003041,2]
[358981882,1745601053047,-763.49,0.0003041,2]
[358981883,1745601053056,-500.0,0.0003041,2]
[358981884,1745601053065,-500.0,0.0003041,2]
[358981885,1745601053074,-1060.93,0.0003041,2]
[358981886,1745601053085,-596.09,0.0003041,2]
[358981887,1745601053095,-500.0,0.0003041,2]
[358981888,1745601053105,-500.0,0.0003041,2]
[358981889,1745601053114,-797.77,0.0003041,2]
[358981890,1745601053124,-500.0,0.0003041,2]
[358981891,1745601053133,-500.0,0.0003041,2]
[358981892,1745601053143,-500.0,0.0003041,2]
[358981893,1745601053153,-500.0,0.0003041,2]
[358981894,1745601053165,-500.0,0.0003041,2]
[358981895,1745601053176,-500.0,0.0003041,2]
[358981896,1745601053186,-500.0,0.0003041,2]
[358981897,1745601053195,-555.88705197,0.0003041,2]
[358981898,1745601053205,-651.19,0.0003041,2]
[358981899,1745601053214,-500.0,0.0003041,2]
[358981900,1745601053223,-500.0,0.0003041,2]
[358981901,1745601053234,-500.0,0.0003041,2]
[358981902,1745601053244,-500.0,0.0003041,2]
[358981903,1745601053256,-500.0,0.0003041,2]
[358981904,1745601053266,-596.41,0.0003041,2]
[358981905,1745601053276,-500.0,0.0003041,2]
[358981906,1745601053286,-500.0,0.0003041,2]
[358981907,1745601053296,-500.0,0.0003041,2]
[358981908,1745601053307,-500.0,0.0003041,2]
[358981909,1745601053317,-610.87,0.0003041,2]
[358981910,1745601053327,-500.0,0.0003041,2]
[358981911,1745601053336,-500.0,0.0003041,2]
[358981912,1745601053345,-793.56,0.0003041,2]
[358981913,1745601053354,-500.0,0.0003041,2]
[358981914,1745601053364,-770.56,0.0003041,2]
[358981915,1745601053373,-500.0,0.0003041,2]
[358981916,1745601053382,-500.0,0.0003041,2]
[358981917,1745601053393,-500.0,0.0003041,2]
[358981918,1745601053403,-506.94,0.0003041,2]
[358981919,1745601053414,-572.28333625,0.0003041,2]
[358981920,1745601053423,-565.76955078,0.0003041,2]
[358981921,1745601053433,-500.0,0.0003041,2]
[358981922,1745601053442,-500.0,0.0003041,2]
[358981923,1745601053451,-500.0,0.0003041,2]
[358981924,1745601053460,-676.3,0.0003041,2]
[358981925,1745601053469,-500.0,0.0003041,2]
[358981926,1745601053479,-628.9,0.0003041,2]
[358981927,1745601053488,-500.0,0.0003041,2]
[358981928,1745601053499,-500.0,0.0003041,2]
[358981929,1745601053510,-500.0,0.0003041,2]
[358981930,1745601053519,-500.0,0.0003041,2]
[358981931,1745601053529,-500.0,0.0003041,2]
[358981932,1745601053538,-500.0,0.0003041,2]
[358981933,1745601053548,-500.0,0.0003041,2]
[358981934,1745601053559,-500.0,0.0003041,2]
[358981935,1745601053569,-500.0,0.0003041,2]
[358981936,1745601053580,-661.71,0.0003041,2]
[358981937,1745601053590,-944.9,0.0003041,2]
[358981938,1745601053599,-627.95,0.0003041,2]
[358981939,1745601053608,-866.13,0.0003041,2]
[358981940,1745601053618,-500.0,0.0003041,2]
[358981941,1745601053628,-500.0,0.0003041,2]
[358981942,1745601053637,-557.53,0.0003041,2]
[358981943,1745601053647,-500.0,0.0003041,2]
[358981944,1745601053656,-500.0,0.0003041,2]
[358981945,1745601053666,-500.0,0.0003041,2]
[358981946,1745601053677,-500.0,0.0003041,2]
[358981947,1745601053687,-500.0,0.0003041,2]
[358981948,1745601053696,-833.85,0.0003041,2]
[358981949,1745601053705,-716.6,0.0003041,2]
[358981950,1745601053715,-500.0,0.0003041,2]
[358981951,1745601053724,-500.0,0.0003041,2]
[358981952,1745601053736,-500.0,0.0003041,2]
[358981953,1745601053746,-802.97,0.0003041,2]
[358981954,1745601053756,-500.0,0.0003041,2]
[358981955,1745601053765,-500.0,0.0003041,2]
[358981956,1745601053774,-500.0,0.0003041,2]
[358981957,1745601053784,-500.0,0.0003041,2]
[358981958,1745601053795,-513.48059467,0.0003041,2]
[358981959,1745601053805,-500.0,0.0003041,2]
[358981960,1745601053817,-596.46398445,0.0003041,2]
[358981961,1745601053828,-500.0,0.0003041,2]
[358981962,1745601053838,-500.0,0.0003041,2]
[358981963,1745601053848,-517.87,0.0003041,2]
[358981964,1745601053857,-500.0,0.0003041,2]
[358981965,1745601053866,-500.0,0.0003041,2]
[358981966,1745601053877,-500.0,0.0003041,2]
[358981967,1745601053888,-500.0,0.0003041,2]
[358981968,1745601053899,-500.0,0.0003041,2]
[358981969,1745601053909,-500.0,0.0003041,2]
[358981970,1745601053920,-391.96635093,0.0003041,2]
[358981971,1745601053930,-500.0,0.0003041,2]
[358981972,1745601053940,-593.44,0.0003041,2]
[358981973,1745601053949,-500.0,0.0003041,2]
[358981974,1745601053958,-1095.86,0.0003041,2]
[358981975,1745601053967,-500.0,0.0003041,2]
[358981976,1745601053977,-1811.99,0.0003041,2]
[358981977,1745601053986,-500.0,0.0003041,2]
[358981978,1745601053996,-500.0,0.0003041,2]
[358981979,1745601054005,-500.0,0.0003041,2]
[358981980,1745601054016,-500.0,0.0003041,2]
[358981981,1745601054026,-500.0,0.0003041,2]
[358981982,1745601054036,-852.25,0.0003041,2]
[358981983,1745601054046,-553.68,0.0003041,2]
[358981984,1745601054057,-618.52,0.0003041,2]
[358981985,1745601054068,-1115.45,0.0003041,2]
[358981986,1745601054079,-680.79,0.0003041,2]
[358981987,1745601054090,-500.0,0.0003041,2]
[358981988,1745601054103,-500.0,0.0003041,2]
[358981989,1745601054113,-735.82,0.0003041,2]
[358981990,1745601054124,-866.06,0.0003041,2]
[358981991,1745601054134,-500.0,0.0003041,2]
[358981992,1745601054143,-660.92,0.0003041,2]
[358981993,1745601054152,-671.19,0.0003041,2]
[358981994,1745601054161,-571.76,0.0003041,2]
[358981995,1745601054175,-319.84,0.0003041,2]
[358981996,1745601054184,-759.03,0.0003041,2]
[358981997,1745601054194,-500.0,0.0003041,2]
[358981998,1745601054203,-500.0,0.0003041,2]
[358981999,1745601054214,-500.0,0.0003041,2]
[358982000,1745601054225,-890.47,0.0003041,2]
[358982001,1745601054235,-500.0,0.0003041,2]
[358982002,1745601054247,-510.10832953,0.0003041,2]
[358982003,1745601054256,-622.98,0.0003041,2]
[358982004,1745601054265,-500.0,0.0003041,2]
[358982005,1745601054275,-677.67,0.0003041,2]
[358982006,1745601054284,-500.0,0.0003041,2]
[358982007,1745601054294,-521.75,0.0003041,2]
[358982008,1745601054303,-500.0,0.0003041,2]
[358982009,1745601054313,-500.0,0.0003041,2]
[358982010,1745601054322,-500.0,0.0003041,2]
[358982011,1745601054332,-500.0,0.0003041,2]
[358982012,1745601054342,-667.79,0.0003041,2]
[358982013,1745601054351,-917.68,0.0003041,2]
[358982014,1745601054360,-845.6,0.0003041,2]
[358982015,1745601054370,-500.0,0.0003041,2]
[358982016,1745601054379,-500.0,0.0003041,2]
[358982017,1745601054389,-461.12707489,0.0003041,2]
[358982018,1745601054398,-777.93,0.0003041,2]
[358982019,1745601054408,-937.17,0.0003041,2]
[358982020,1745601054417,-500.0,0.0003041,2]
[358982021,1745601054427,-500.0,0.0003041,2]
[358982022,1745601054436,-500.0,0.0003041,2]
[358982023,1745601054446,-623.16,0.0003041,2]
[358982024,1745601054455,-500.0,0.0003041,2]
[358982025,1745601054465,-500.0,0.0003041,2]
[358982026,1745601054475,-560.12,0.0003041,2]
[358982027,1745601054485,-500.0,0.0003041,2]
[358982028,1745601054494,-500.0,0.0003041,2]
[358982029,1745601054504,-500.0,0.0003041,2]
[358982030,1745601054514,-500.0,0.0003041,2]
[358982031,1745601054524,-1488.32,0.0003041,2]
[358982032,1745601054533,-669.38,0.0003041,2]
[358982033,1745601054542,-679.8,0.0003041,2]
[358982034,1745601054552,-500.0,0.0003041,2]
[358982035,1745601054561,-830.44,0.0003041,2]
[358982036,1745601054572,-665.83,0.0003041,2]
[358982037,1745601054582,-698.6,0.0003041,2]
[358982038,1745601054591,-500.0,0.0003041,2]
[358982039,1745601054601,-1432.98,0.0003041,2]
[358982040,1745601054610,-500.0,0.0003041,2]
[358982041,1745601054619,-500.0,0.0003041,2]
[358982042,1745601054630,-500.0,0.0003041,2]
[358982043,1745601054640,-1639.18,0.0003041,2]
[358982044,1745601054650,-500.0,0.0003041,2]
[358982045,1745601054660,-500.0,0.0003041,2]
[358982046,1745601054670,-500.0,0.0003041,2]
[358982047,1745601054680,-755.12,0.0003041,2]
[358982048,1745601054690,-500.0,0.0003041,2]
[358982049,1745601054699,-500.0,0.0003041,2]
[358982050,1745601054709,-387.74849559,0.0003041,2]
[358982051,1745601054719,-500.0,0.0003041,2]
[358982052,1745601054729,-575.31095278,0.0003041,2]
[358982053,1745601054739,-500.0,0.0003041,2]
[358982054,1745601054749,-500.0,0.0003041,2]
[358982055,1745601054760,-541.56,0.0003041,2]
[358982056,1745601054770,-554.82337981,0.0003041,2]
[358982057,1745601054780,-500.46,0.0003041,2]
[358982058,1745601054790,-795.37,0.0003041,2]
[358982059,1745601054799,-500.0,0.0003041,2]
[358982060,1745601054809,-2212.24,0.0003041,2]
[358982061,1745601054819,-500.0,0.0003041,2]
[358982062,1745601054828,-631.7,0.0003041,2]
[358982063,1745601054838,-500.0,0.0003041,2]
[358982064,1745601054847,-500.0,0.0003041,2]
[358982065,1745601054857,-404.20985566,0.0003041,2]
[358982066,1745601054867,-500.0,0.0003041,2]
[358982067,1745601054876,-500.0,0.0003041,2]
[358982068,1745601054885,-1081.71,0.0003041,2]
[358982069,1745601054895,-537.39,0.0003041,2]
[358982070,1745601054905,-500.0,0.0003041,2]
[358982071,1745601054914,-960.49,0.0003041,2]
[358982072,1745601054924,-500.0,0.0003041,2]
[358982073,1745601054933,-500.0,0.0003041,2]
[358982074,1745601054942,-500.0,0.0003041,2]
[358982075,1745601054952,-500.0,0.0003041,2]
[358982076,1745601054962,-500.0,0.0003041,2]
[358982077,1745601054971,-658.91,0.0003041,2]
[358982078,1745601054980,-500.0,0.0003041,2]
[358982079,1745601054989,-500.0,0.0003041,2]
[358982080,1745601054999,-500.0,0.0003041,2]
[358982081,1745601055008,-894.84,0.0003041,2]
[358982082,1745601055017,-500.0,0.0003041,2]
[358982083,1745601055027,-500.0,0.0003041,2]
[358982084,1745601055037,-500.0,0.0003041,2]
[358982085,1745601055046,-500.0,0.0003041,2]
[358982086,1745601055056,-500.0,0.0003041,2]
[358982087,1745601055066,-500.0,0.0003041,2]
[358982088,1745601055075,-539.4,0.0003041,2]
[358982089,1745601055085,-500.0,0.0003041,2]
[358982090,1745601055095,-684.51,0.0003041,2]
[358982091,1745601055105,-500.0,0.0003041,2]
[358982092,1745601055116,-500.0,0.0003041,2]
[358982093,1745601055125,-500.0,0.0003041,2]
[358982094,1745601055135,-556.76,0.0003041,2]
[358982095,1745601055144,-498.19959998,0.0003041,2]
[358982096,1745601055153,-500.0,0.0003041,2]
[358982097,1745601055166,-593.21494977,0.0003041,2]
[358982098,1745601055177,-950.92,0.0003041,2]
[358982099,1745601055187,-500.0,0.0003041,2]
[358982100,1745601055196,-500.0,0.0003041,2]
[358982101,1745601055206,-300.0,0.0003041,2]
[358982102,1745601055217,-500.0,0.0003041,2]
[358982103,1745601055228,-500.0,0.0003041,2]
[358982104,1745601055239,-500.0,0.0003041,2]
[358982105,1745601055248,-500.0,0.0003041,2]
[358982106,1745601055260,-2348.09,0.0003041,2]
[358982107,1745601055269,-500.0,0.0003041,2]
[358982108,1745601055280,-500.0,0.0003041,2]
[358982109,1745601055291,-675.52,0.0003041,2]
[358982110,1745601055302,-500.0,0.0003041,2]
[358982111,1745601055313,-500.0,0.0003041,2]
[358982112,1745601055324,-500.0,0.0003041,2]
[358982113,1745601055335,-500.0,0.0003041,2]
[358982114,1745601055345,-901.79,0.0003041,2]
[358982115,1745601055355,-500.0,0.0003041,2]
[358982116,1745601055365,-658.48,0.0003041,2]
[358982117,1745601055374,-770.38,0.0003041,2]
[358982118,1745601055383,-471.44844487,0.0003041,2]
[358982119,1745601055393,-500.0,0.0003041,2]
[358982120,1745601055402,-500.0,0.0003041,2]
[358982121,1745601055411,-500.0,0.0003041,2]
[358982122,1745601055421,-1648.72,0.0003041,2]
[358982123,1745601055431,-500.0,0.0003041,2]
[358982124,1745601055441,-846.62,0.0003041,2]
[358982125,1745601055451,-791.21,0.0003041,2]
[358982126,1745601055460,-514.16,0.0003041,2]
[358982127,1745601055470,-500.0,0.0003041,2]
[358982128,1745601055713,-500.0,0.0003041,2]
[358982129,1745601055724,-500.0,0.0003041,2]
[358982130,1745601055736,-500.0,0.0003041,2]
[358982131,1745601055747,-758.52,0.0003041,2]
[358982132,1745601055758,-500.0,0.0003041,2]
[358982133,1745601055768,-500.0,0.0003041,2]
[358982134,1745601055779,-500.0,0.0003041,2]
[358982135,1745601055789,-928.26,0.0003041,2]
[358982136,1745601055801,-500.0,0.0003041,2]
[358982137,1745601055811,-636.67,0.0003041,2]
[358982138,1745601055823,-1084.23,0.0003041,2]
[358982139,1745601055833,-500.0,0.0003041,2]
[358982140,1745601055844,-1404.22,0.0003041,2]
[358982141,1745601055854,-500.0,0.0003041,2]
[358982142,1745601055863,-219.03813013,0.0003041,2]
[358982143,1745601055873,-500.0,0.0003041,2]
[358982144,1745601055884,-500.0,0.0003041,2]
[358982145,1745601055893,-510.31779385,0.0003041,2]
[358982146,1745601055904,-500.0,0.0003041,2]
[358982147,1745601055915,-500.0,0.0003041,2]
[358982148,1745601055927,-500.0,0.0003041,2]
[358982149,1745601055936,-928.92,0.0003041,2]
[358982150,1745601055946,-500.0,0.0003041,2]
[358982151,1745601055957,-892.74,0.0003041,2]
[358982152,1745601055969,-500.0,0.0003041,2]
[358982153,1745601055980,-992.42,0.0003041,2]
[358982154,1745601055991,-500.0,0.0003041,2]
[358982155,1745601056002,-500.0,0.0003041,2]
[358982156,1745601056013,-500.0,0.0003041,2]
[358982157,1745601056023,-1065.93,0.0003041,2]
[358982158,1745601056032,-500.0,0.0003041,2]
[358982159,1745601056042,-500.0,0.0003041,2]
[358982160,1745601056052,-500.0,0.0003041,2]
[358982161,1745601056061,-996.56,0.0003041,2]
[358982162,1745601056072,-500.0,0.0003041,2]
[358982163,1745601056085,-836.29,0.0003041,2]
[358982164,1745601056095,-500.0,0.0003041,2]
[358982165,1745601056107,-697.21,0.0003041,2]
[358982166,1745601056117,-500.0,0.0003041,2]
[358982167,1745601056128,-500.0,0.0003041,2]
[358982168,1745601056140,-500.0,0.0003041,2]
[358982169,1745601056151,-500.0,0.0003041,2]
[358982170,1745601056162,-537.66,0.0003041,2]
[358982171,1745601056176,-500.0,0.0003041,2]
[358982172,1745601056186,-500.0,0.0003041,2]
[358982173,1745601056197,-840.45,0.0003041,2]
[358982174,1745601056208,-500.0,0.0003041,2]
[358982175,1745601056218,-500.0,0.0003041,2]
[358982176,1745601056229,-567.72,0.0003041,2]
[358982177,1745601056239,-500.0,0.0003041,2]
[358982178,1745601056250,-856.73,0.0003041,2]
[358982179,1745601056262,-500.0,0.0003041,2]
[358982180,1745601056272,-500.0,0.0003041,2]
[358982181,1745601056282,-500.0,0.0003041,2]
[358982182,1745601056293,-500.0,0.0003041,2]
[358982183,1745601056305,-500.0,0.0003041,2]
[358982184,1745601056316,-500.0,0.0003041,2]
[358982185,1745601056328,-500.0,0.0003041,2]
[358982186,1745601056338,-500.0,0.0003041,2]
[358982187,1745601056347,-500.0,0.0003041,2]
[358982188,1745601056359,-1077.86,0.0003041,2]
[358982189,1745601056369,-500.0,0.0003041,2]
[358982190,1745601056378,-500.0,0.0003041,2]
[358982191,1745601056388,-1087.13,0.0003041,2]
[358982192,1745601056399,-1029.39,0.0003041,2]
[358982193,1745601056409,-500.0,0.0003041,2]
[358982194,1745601056419,-541.45093837,0.0003041,2]
[358982195,1745601056428,-500.0,0.0003041,2]
[358982196,1745601056439,-500.0,0.0003041,2]